{"text_format":"1","workbook":"xlsx","n_sheets":14,"sheets":["Cover","Info","Results","E01","E02","E03","E04","E05","E06","E07","E08","E09","E10","About"],"not_rendered":{"charts":11,"images":37,"macros":1,"external_links":0,"defined_names":15,"comments":0,"pivot_tables":0},"unopened":[],"bounds":{"document_bytes":16777216,"sheet_cells":100000,"rows_first":2000,"rows_last":500,"rows_between":2000,"halvings":0,"cell_chars":16384,"cell_head_chars":4096},"cells_cut":0,"cells_raw":0,"read":"whole","date_system":"1900"}

{"sheet":"Cover","index":0,"n_rows":0,"n_cols":0,"rows_kept":0,"cut":false,"hidden":false,"merged":[]}

{"sheet":"Info","index":1,"n_rows":39,"n_cols":4,"rows_kept":39,"cut":false,"hidden":false,"merged":[[0,0,0,16383],[38,1,38,3],[39,1,39,3],[2,1,2,2],[3,1,3,2],[4,1,4,2],[5,1,5,2],[6,1,6,2],[37,1,37,3],[31,1,31,2],[32,1,32,2],[33,1,33,2],[34,1,34,2],[35,1,35,2]]}
[]
[]
[null,"Данная оценка",null,"Реагирование"]
[null,"Название города:"]
[null,"Тип города (муниципалитет, муниципальные районы и т.д.):"]
[null,"Страна:"]
[null,"Дата оценки:"]
[]
[null,"Краткие сведения о городе (обязательные данные)","Реагирование","Дата создания источника данных"]
[null,"Высшее должностное лицо (например, мэр и т.д)"]
[null,"Общая численность населения города:   "]
[null,"Площадь территории города (в км2):"]
[null,"Плотность населения (на км2):"]
[null,"Доля молодежи (от 15 до 24 лет) (%):"]
[null,"Доля пожилого населения (старше 65 лет) (%):"]
[null,"Гендерный аспект (домохозяйства, возглавляемые женщинами):"]
[null,"Уровень грамотности (% грамотного населения):"]
[null,"Уровень бедности (% населения выше черты бедности):"]
[null,"Средний доход домохозяйства (долл. США):"]
[null,"Жители, не являющиеся гражданами страны (%):"]
[null,"Наиболее вероятный (известный) риск бедствий:"]
[null,"Бедствие (известное) с наиболее тяжелыми последствиями:"]
[]
[null,"Краткие сведения о городе (необязательные данные)","Реагирование","Дата создания источника данных"]
[null,"Общее количество домохозяйств:"]
[null,"Размер домохозяйства (человек):"]
[null,"Прожиточный минимум (долл. США):"]
[null,"ВВП страны на душу населения (долл. США):"]
[null,"Коэффициент Джини:"]
[null,"Городской продукт на душу населения (долл. США):"]
[]
[null,"Подразделение в составе местных органов власти, отвечающее за снижение риска бедствий и обеспечение устойчивости",null,"Реагирование"]
[null,"Имя лица, руководившего / координировавшего проведение оценки на основе оценочного листа:"]
[null,"Организация:"]
[null,"Контактная информация:"]
[null,"Согласие поделиться результатами или на то, чтобы БСРБ ООН и партнеры использовали их в качестве примера / анализа практической ситуации:"]
[]
[null,"Информация о заинтересованных сторонах"]
[null,"Пожалуйста, перечислите все заинтересованные стороны, которые помогали в проведении приведенной далее оценки."]

{"sheet":"Results","index":2,"n_rows":152,"n_cols":13,"rows_kept":152,"cut":false,"hidden":false,"merged":[[113,1,113,3],[96,2,96,5],[104,2,104,5],[105,2,105,5],[99,2,99,5],[111,1,111,2],[34,2,34,5],[89,2,89,5],[90,2,90,5],[91,2,91,5],[41,2,41,5],[42,2,42,5],[43,2,43,5],[52,2,52,5],[59,2,59,5],[65,2,65,5],[57,3,57,6],[39,3,39,6],[63,3,63,6],[69,3,69,6],[77,3,77,6],[73,2,73,5],[71,2,71,5],[72,2,72,5],[74,2,74,5],[94,3,94,5],[102,3,102,6],[97,2,97,5],[98,2,98,5],[79,2,79,5],[80,2,80,5],[81,2,81,5]]}
[]
[]
[]
[]
[]
[]
[]
[]
[]
[]
[]
[]
[]
[]
[]
[]
[]
[]
[]
[]
[]
[]
[]
[]
[]
[]
[]
[]
[]
[]
[]
[]
[null,"Основной принцип 01: ",null,{"$f":"D118","v":"Организационные меры для повышения устойчивости"}]
[]
[null,{"$f":"C130","v":"A1.1"},{"$f":"E130","v":"Сектор здравоохранения является частью многоотраслевой системы управления риском бедствий"},null,null,null,{"$f":"F130","v":0}]
[]
[]
[]
[]
[null,"Основной принцип 02: ",null,{"$f":"D119","v":"Определять, осмысливать и использовать сценарии реализации существующих и будущих факторов риска"}]
[]
[null,{"$f":"C131","v":"A2.1"},{"$f":"E131","v":"Включение ряда чрезвычайных ситуаций и бедствий (например, вспышки болезней / пандемии, голод, нехватка воды и т. д.) в качестве отдельных сценариев возникновения бедствий "},null,null,null,{"$f":"F131","v":0}]
[null,{"$f":"C132","v":"A2.2"},{"$f":"E132","v":"Учет прогнозируемых последствий других сценариев риска бедствий (например, наводнений, аномально высоких температур, землетрясений) на здравоохранение "},null,null,null,{"$f":"F132","v":0}]
[null,{"$f":"C133","v":"A2.3"},{"$f":"E133","v":"Учет при планировании на случай бедствий ранее существовавших хронических заболеваний, включая неинфекционные заболевания"},null,null,null,{"$f":"F133","v":0}]
[]
[]
[]
[]
[]
[]
[null,"Основной принцип 03:",null,{"$f":"D120","v":"Укрепить финансовые возможности для обеспечения устойчивости"}]
[]
[null,{"$f":"C134","v":"A3.1"},{"$f":"E134","v":"Финансирование аспектов здравоохранения, влияющих на устойчивость "},null,null,null,{"$f":"F134","v":0}]
[]
[]
[]
[]
[null,"Основной принцип 04:",null,{"$f":"D121","v":"Применять нормы городского развития, направленные на обеспечение устойчивости"}]
[]
[null,{"$f":"C135","v":"A4.1"},{"$f":"E135","v":"Соответствие ключевых медицинских учреждений нормам и правилам устойчивого землепользования и строительства "},null,null,null,{"$f":"F135","v":0}]
[]
[]
[]
[null,"Основной принцип 05:",null,{"$f":"D122","v":"Беречь естественные буферные зоны, чтобы усилить возможности защиты, предлагаемой природными экосистемами"}]
[]
[null,{"$f":"C136","v":"A5.1"},{"$f":"E136","v":"Сохранение полезных для здоровья населения экосистемных услуг "},null,null,null,{"$f":"F136","v":0}]
[]
[]
[]
[null,"Основной принцип 06:",null,{"$f":"D123","v":"Укрепление организационного потенциала для обеспечения устойчивости"}]
[]
[null,{"$f":"C137","v":"A6.1"},{"$f":"E137","v":"Наличие медицинских работников, имеющих соответствующие компетенции и навыки для обеспечения устойчивости к бедствиям"},null,null,null,{"$f":"F137","v":0}]
[null,{"$f":"C138","v":"A6.2"},{"$f":"E138","v":"Предоставление данных системы здравоохранения другим заинтересованным сторонам "},null,null,null,{"$f":"F138","v":0}]
[null,{"$f":"C139","v":"A6.2.1"},{"$f":"E139","v":"Предоставление других данных заинтересованным сторонам в системе здравоохранения "},null,null,null,{"$f":"F139","v":0}]
[null,{"$f":"C140","v":"A6.2.2"},{"$f":"E140","v":"Защита индивидуальной медицинской документации и доступ к ней "},null,null,null,{"$f":"F140","v":0}]
[]
[]
[null,"Основной принцип 07: ",null,{"$f":"D124","v":"Иметь ясное представление о потенциале восстановления общества и работать над его повышением"}]
[]
[null,{"$f":"C141","v":"A7.1"},{"$f":"E141","v":"Способность системы здравоохранения эффективно вовлекать представителей сообщества в мероприятия по управлению риском бедствий "},null,null,null,{"$f":"F141","v":0}]
[null,{"$f":"C142","v":"A7.1.2"},{"$f":"E142","v":"Доступ сообщества к информации, касающейся здоровья населения, и доверие к ней "},null,null,null,{"$f":"F142","v":0}]
[null,{"$f":"C143","v":"A7.2"},{"$f":"E143","v":"Способность сообщества \"вернуться к нормальной жизни\" – психическое здоровье "},null,null,null,{"$f":"F143","v":0}]
[]
[]
[]
[]
[]
[null,"Основной принцип 08:",null,{"$f":"D125","v":"Повышать устойчивость объектов инфраструктуры "}]
[]
[null,{"$f":"C144","v":"A8.1"},{"$f":"E144","v":"Повышение структурной и неструктурной безопасности и функциональности объектов инфраструктуры здравоохранения, не учитываемых в Основном принципе 8 "},null,null,null,{"$f":"F144","v":0}]
[null,{"$f":"C145","v":"A8.2"},{"$f":"E145","v":"Потенциал экстренной мобилизации инфраструктуры здравоохранения, не учтенный в рамках Основного принципа 8 "},null,null,null,{"$f":"F145","v":0}]
[null,{"$f":"C146","v":"A8.3"},{"$f":"E146","v":"Непрерывность ухода за теми, кто уже болен, если это не учитывается в Основном принципе 8. "},null,null,null,{"$f":"F146","v":0}]
[]
[]
[null,"Основной принцип 09:",null,{"$f":"D126","v":"Обеспечить эффективное реагирование на бедствия"}]
[]
[null,{"$f":"C147","v":"A9.1"},{"$f":"E147","v":"Системы раннего оповещения о чрезвычайных ситуациях, связанных со здоровьем населения "},null,null,null,{"$f":"F147","v":0}]
[null,{"$f":"C148","v":"A9.2"},{"$f":"E148","v":"Интеграция здравоохранения в систему управления при чрезвычайных ситуациях "},null,null,null,{"$f":"F148","v":0}]
[null,{"$f":"C149","v":"A9.3"},{"$f":"E149","v":"Учет групп повышенного риска или лиц, находящихся дома и имеющих хронические заболевания "},null,null,null,{"$f":"F149","v":0}]
[null,{"$f":"C150","v":"A9.4"},{"$f":"E150","v":"Способность снабжения нуждающихся товарами, необходимыми для поддержания здоровья населения. "},null,null,null,{"$f":"F150","v":0}]
[]
[]
[null,"Основной принцип 10: ",null,{"$f":"D127","v":"Ускорить процесс восстановления, причем вновь отстраиваемые здания должны отвечать более высоким стандартам устойчивости"}]
[]
[null,{"$f":"C151","v":"A10.1"},{"$f":"E151","v":"Смягчение долгосрочных последствий для здоровья и благосостояния населения"},null,null,null,{"$f":"F151","v":0}]
[null,{"$f":"C152","v":"A10.2"},{"$f":"E152","v":"Обучение и совершенствование навыков "},null,null,null,{"$f":"F152","v":0}]
[]
[]
[]
[]
[]
[null,{"$f":"TODAY()","v":"2021-02-24"},null,null,null,null,null,{"$f":"Info!$B$4","v":"Название города:"},{"$f":"Info!$D$4","v":0},null,{"$f":"Info!$B$6","v":"Страна:"},{"$f":"Info!$D$6","v":0}]
[]
[]
[]
[]
[null,null,"Label","Name",null,"Essential","TotalScore","MaxScore","Label"]
[null,null,"S1","Организационные меры для повышения устойчивости",null,"E1",{"$f":"SUMIFS($F$130:$F$189,$B$130:$B$189,F118)","v":0},{"$f":"COUNTIFS($B$130:$B$152,F118)*5","v":5},"01",null,{"$f":"SUM(G118:G127)","v":0},{"$f":"K118/K119","v":0},{"$f":"CONCATENATE(\"Общий балл в рамках этой оценки составляет  \",SUM(G118:G127),\" / \",SUM(H118:H127))","v":"Общий балл в рамках этой оценки составляет  0 / 115"}]
[null,null,"S2","Определять, осмысливать и использовать сценарии реализации существующих и будущих факторов риска",null,"E2",{"$f":"SUMIFS($F$130:$F$1010,$B$130:$B$1010,F119)","v":0},15,"02",null,{"$f":"SUM(H118:H127)","v":115},{"$f":"1-L118","v":1}]
[null,null,"S3","Укрепить финансовые возможности для обеспечения устойчивости",null,"E3",0,5,"03"]
[null,null,"S4","Применять нормы городского развития, направленные на обеспечение устойчивости",null,"E4",0,5,"04"]
[null,null,"S5","Беречь естественные буферные зоны, чтобы усилить возможности защиты, предлагаемой природными экосистемами",null,"E5",0,5,"05"]
[null,null,"S6","Укрепление организационного потенциала для обеспечения устойчивости",null,"E6",0,20,"06"]
[null,null,"S7","Иметь ясное представление о потенциале восстановления общества и работать над его повышением",null,"E7",0,15,"07"]
[null,null,"S8","Повышать устойчивость объектов инфраструктуры ",null,"E8",0,15,"08"]
[null,null,"S9","Обеспечить эффективное реагирование на бедствия",null,"E9",0,20,"09"]
[null,null,"S10","Ускорить процесс восстановления, причем вновь отстраиваемые здания должны отвечать более высоким стандартам устойчивости",null,"E10",0,10,"10"]
[]
[null,"Section","Ref",null,"Question","SelectedScore","ThisScore"]
[null,"E1",{"$f":"'E01'!$G$5","v":"A1.1"},null,{"$f":"'E01'!I5","v":"Сектор здравоохранения является частью многоотраслевой системы управления риском бедствий"},{"$f":"IF(G130=\"\",0,IF(G130=0,0,6-G130))","v":0},{"$f":"OFFSET('E01'!$E$1,MATCH(C130,'E01'!G:G,0)+3,0)","v":0}]
[null,"E2",{"$f":"'E02'!$G$5","v":"A2.1"},null,{"$f":"'E02'!I5","v":"Включение ряда чрезвычайных ситуаций и бедствий (например, вспышки болезней / пандемии, голод, нехватка воды и т. д.) в качестве отдельных сценариев возникновения бедствий "},{"$f":"IF(G131=\"\",0,IF(G131=0,0,6-G131))","v":0},{"$f":"OFFSET('E02'!$E$1,MATCH(C131,'E02'!G:G,0)+3,0)","v":0}]
[null,"E2",{"$f":"'E02'!$G$18","v":"A2.2"},null,{"$f":"'E02'!$I$18","v":"Учет прогнозируемых последствий других сценариев риска бедствий (например, наводнений, аномально высоких температур, землетрясений) на здравоохранение "},0,{"$f":"OFFSET('E02'!$E$1,MATCH(C132,'E02'!G:G,0)+3,0)","v":0}]
[null,"E2",{"$f":"'E02'!$G$31","v":"A2.3"},null,{"$f":"'E02'!$I$31","v":"Учет при планировании на случай бедствий ранее существовавших хронических заболеваний, включая неинфекционные заболевания"},0,{"$f":"OFFSET('E02'!$E$1,MATCH(C133,'E02'!G:G,0)+3,0)","v":0}]
[null,"E3",{"$f":"'E03'!$G$5","v":"A3.1"},null,{"$f":"'E03'!$I$5","v":"Финансирование аспектов здравоохранения, влияющих на устойчивость "},0,{"$f":"OFFSET('E03'!$E$1,MATCH(C134,'E03'!G:G,0)+3,0)","v":0}]
[null,"E4",{"$f":"'E04'!$G$5","v":"A4.1"},null,{"$f":"'E04'!$I$5","v":"Соответствие ключевых медицинских учреждений нормам и правилам устойчивого землепользования и строительства "},0,{"$f":"OFFSET('E04'!$E$1,MATCH(C135,'E04'!G:G,0)+3,0)","v":0}]
[null,"E5",{"$f":"'E05'!$G$5","v":"A5.1"},null,{"$f":"'E05'!$I$5","v":"Сохранение полезных для здоровья населения экосистемных услуг "},0,{"$f":"OFFSET('E05'!$E$1,MATCH(C136,'E05'!G:G,0)+3,0)","v":0}]
[null,"E6",{"$f":"'E06'!$G$5","v":"A6.1"},null,{"$f":"'E06'!$I$5","v":"Наличие медицинских работников, имеющих соответствующие компетенции и навыки для обеспечения устойчивости к бедствиям"},0,{"$f":"OFFSET('E06'!$E$1,MATCH(C137,'E06'!G:G,0)+3,0)","v":0}]
[null,"E6",{"$f":"'E06'!$G$18","v":"A6.2"},null,{"$f":"'E06'!$I$18","v":"Предоставление данных системы здравоохранения другим заинтересованным сторонам "},0,{"$f":"OFFSET('E06'!$E$1,MATCH(C138,'E06'!G:G,0)+3,0)","v":0}]
[null,"E6",{"$f":"'E06'!$G$31","v":"A6.2.1"},null,{"$f":"'E06'!$I$31","v":"Предоставление других данных заинтересованным сторонам в системе здравоохранения "},0,{"$f":"OFFSET('E06'!$E$1,MATCH(C139,'E06'!G:G,0)+3,0)","v":0}]
[null,"E6",{"$f":"'E06'!$G$44","v":"A6.2.2"},null,{"$f":"'E06'!$I$44","v":"Защита индивидуальной медицинской документации и доступ к ней "},0,{"$f":"OFFSET('E06'!$E$1,MATCH(C140,'E06'!G:G,0)+3,0)","v":0}]
[null,"E7",{"$f":"'E07'!$G$5","v":"A7.1"},null,{"$f":"'E07'!$I$5","v":"Способность системы здравоохранения эффективно вовлекать представителей сообщества в мероприятия по управлению риском бедствий "},0,{"$f":"OFFSET('E07'!$E$1,MATCH(C141,'E07'!G:G,0)+3,0)","v":0}]
[null,"E7",{"$f":"'E07'!$G$18","v":"A7.1.2"},null,{"$f":"'E07'!$I$18","v":"Доступ сообщества к информации, касающейся здоровья населения, и доверие к ней "},0,{"$f":"OFFSET('E07'!$E$1,MATCH(C142,'E07'!G:G,0)+3,0)","v":0}]
[null,"E7",{"$f":"'E07'!$G$31","v":"A7.2"},null,{"$f":"'E07'!$I$31","v":"Способность сообщества \"вернуться к нормальной жизни\" – психическое здоровье "},0,{"$f":"OFFSET('E07'!$E$1,MATCH(C143,'E07'!G:G,0)+3,0)","v":0}]
[null,"E8",{"$f":"'E08'!$G$5","v":"A8.1"},null,{"$f":"'E08'!$I$5","v":"Повышение структурной и неструктурной безопасности и функциональности объектов инфраструктуры здравоохранения, не учитываемых в Основном принципе 8 "},0,{"$f":"OFFSET('E08'!$E$1,MATCH(C144,'E08'!G:G,0)+3,0)","v":0}]
[null,"E8",{"$f":"'E08'!$G$18","v":"A8.2"},null,{"$f":"'E08'!$I$18","v":"Потенциал экстренной мобилизации инфраструктуры здравоохранения, не учтенный в рамках Основного принципа 8 "},{"$f":"IF(G145=\"\",0,IF(G145=0,0,6-G145))","v":0},{"$f":"OFFSET('E08'!$E$1,MATCH(C145,'E08'!G:G,0)+3,0)","v":0}]
[null,"E8",{"$f":"'E08'!$G$31","v":"A8.3"},null,{"$f":"'E08'!$I$31","v":"Непрерывность ухода за теми, кто уже болен, если это не учитывается в Основном принципе 8. "},0,{"$f":"OFFSET('E08'!$E$1,MATCH(C146,'E08'!G:G,0)+3,0)","v":0}]
[null,"E9",{"$f":"'E09'!$G$5","v":"A9.1"},null,{"$f":"'E09'!$I$5","v":"Системы раннего оповещения о чрезвычайных ситуациях, связанных со здоровьем населения "},0,{"$f":"OFFSET('E09'!$E$1,MATCH(C147,'E09'!G:G,0)+3,0)","v":0}]
[null,"E9",{"$f":"'E09'!$G$18","v":"A9.2"},null,{"$f":"'E09'!$I$18","v":"Интеграция здравоохранения в систему управления при чрезвычайных ситуациях "},0,{"$f":"OFFSET('E09'!$E$1,MATCH(C148,'E09'!G:G,0)+3,0)","v":0}]
[null,"E9",{"$f":"'E09'!$G$31","v":"A9.3"},null,{"$f":"'E09'!$I$31","v":"Учет групп повышенного риска или лиц, находящихся дома и имеющих хронические заболевания "},0,{"$f":"OFFSET('E09'!$E$1,MATCH(C149,'E09'!G:G,0)+3,0)","v":0}]
[null,"E9",{"$f":"'E09'!$G$44","v":"A9.4"},null,{"$f":"'E09'!$I$44","v":"Способность снабжения нуждающихся товарами, необходимыми для поддержания здоровья населения. "},0,{"$f":"OFFSET('E09'!$E$1,MATCH(C150,'E09'!G:G,0)+3,0)","v":0}]
[null,"E10",{"$f":"'E10'!$G$5","v":"A10.1"},null,{"$f":"'E10'!$I$5","v":"Смягчение долгосрочных последствий для здоровья и благосостояния населения"},0,{"$f":"OFFSET('E10'!$E$1,MATCH(C151,'E10'!G:G,0)+3,0)","v":0}]
[null,"E10",{"$f":"'E10'!$G$18","v":"A10.2"},null,{"$f":"'E10'!$I$18","v":"Обучение и совершенствование навыков "},0,{"$f":"OFFSET('E10'!$E$1,MATCH(C152,'E10'!G:G,0)+3,0)","v":0}]

{"sheet":"E01","index":3,"n_rows":15,"n_cols":9,"rows_kept":15,"cut":false,"hidden":false,"merged":[[7,2,7,3],[8,2,13,3],[5,2,5,3],[6,2,6,3]]}
["a"]
[]
[null,"A.1 Интеграция систем здравоохранения и управления (Основной принцип 1)",null,null,null,null,"A.1",null,"Интеграция систем здравоохранения и управления (Основной принцип 1)"]
[]
[null,"A.1.1 Сектор здравоохранения является частью многоотраслевой системы управления риском бедствий",null,null,null,null,"A1.1",null,"Сектор здравоохранения является частью многоотраслевой системы управления риском бедствий"]
[null,"Вопрос","Примечания"]
[]
[null,"Реагирование","Предоставить средства проверки (объяснения и доказательства)"]
[null,null,null,null,null,{"$f":"IF(E9=1,TRUE,FALSE)","v":false}]
[null,null,null,null,null,{"$f":"IF(E9=2,TRUE,FALSE)","v":false}]
[null,null,null,null,null,{"$f":"IF(E9=3,TRUE,FALSE)","v":false}]
[null,null,null,null,null,{"$f":"IF(E9=4,TRUE,FALSE)","v":false}]
[null,null,null,null,null,{"$f":"IF(E9=5,TRUE,FALSE)","v":false}]
[null,null,null,null,null,{"$f":"IF(E9=6,TRUE,FALSE)","v":false}]
[null,"Меры для достижения максимальной устойчивости","Ответственное учреждение","Сроки"]

{"sheet":"E02","index":4,"n_rows":41,"n_cols":9,"rows_kept":41,"cut":false,"hidden":false,"merged":[[5,2,5,3],[6,2,6,3],[7,2,7,3],[18,2,18,3],[19,2,19,3],[20,2,20,3],[8,2,13,3],[21,2,26,3],[34,2,39,3],[31,2,31,3],[32,2,32,3],[33,2,33,3]]}
[]
[]
[null,"A.2 Включение ЧС, связанных со здоровьем населения, в сценарии возникновения бедствий (Основной принцип 2)",null,null,null,null,"A.2",null,"Включение ЧС, связанных со здоровьем населения, в сценарии возникновения бедствий (Основной принцип 2)"]
[]
[null,"A2.1 Включение ряда чрезвычайных ситуаций и бедствий (например, вспышки болезней / пандемии, голод, нехватка воды и т. д.) в качестве отдельных сценариев возникновения бедствий ",null,null,null,null,"A2.1",null,"Включение ряда чрезвычайных ситуаций и бедствий (например, вспышки болезней / пандемии, голод, нехватка воды и т. д.) в качестве отдельных сценариев возникновения бедствий "]
[null,"Вопрос","Примечания"]
[]
[null,"Реагирование","Предоставить средства проверки (объяснения и доказательства)"]
[null,null,null,null,null,{"$f":"IF(E9=1,TRUE,FALSE)","v":false}]
[null,null,null,null,null,{"$f":"IF(E9=2,TRUE,FALSE)","v":false}]
[null,null,null,null,null,{"$f":"IF(E9=3,TRUE,FALSE)","v":false}]
[null,null,null,null,null,{"$f":"IF(E9=4,TRUE,FALSE)","v":false}]
[null,null,null,null,null,{"$f":"IF(E9=5,TRUE,FALSE)","v":false}]
[null,null,null,null,null,{"$f":"IF(E9=6,TRUE,FALSE)","v":false}]
[null,"Меры для достижения максимальной устойчивости","Ответственное учреждение","Сроки"]
[]
[]
[null,"A2.2 Учет прогнозируемых последствий других сценариев риска бедствий (например, наводнений, аномально высоких температур, землетрясений) на здравоохранение ",null,null,null,null,"A2.2",null,"Учет прогнозируемых последствий других сценариев риска бедствий (например, наводнений, аномально высоких температур, землетрясений) на здравоохранение "]
[null,"Вопрос","Примечания"]
[]
[null,"Реагирование","Предоставить средства проверки (объяснения и доказательства)"]
[null,null,null,null,null,{"$f":"IF(E22=1,TRUE,FALSE)","v":false}]
[null,null,null,null,null,{"$f":"IF(E22=2,TRUE,FALSE)","v":false}]
[null,null,null,null,null,{"$f":"IF(E22=3,TRUE,FALSE)","v":false}]
[null,null,null,null,null,{"$f":"IF(E22=4,TRUE,FALSE)","v":false}]
[null,null,null,null,null,{"$f":"IF(E22=5,TRUE,FALSE)","v":false}]
[null,null,null,null,null,{"$f":"IF(E22=6,TRUE,FALSE)","v":false}]
[null,"Меры для достижения максимальной устойчивости","Ответственное учреждение","Сроки"]
[]
[]
[null,"A2.3 Учет при планировании на случай бедствий ранее существовавших хронических заболеваний, включая неинфекционные заболевания",null,null,null,null,"A2.3",null,"Учет при планировании на случай бедствий ранее существовавших хронических заболеваний, включая неинфекционные заболевания"]
[null,"Вопрос","Примечания"]
[]
[null,"Реагирование","Предоставить средства проверки (объяснения и доказательства)"]
[null,null,null,null,null,{"$f":"IF(E35=1,TRUE,FALSE)","v":false}]
[null,null,null,null,null,{"$f":"IF(E35=2,TRUE,FALSE)","v":false}]
[null,null,null,null,null,{"$f":"IF(E35=3,TRUE,FALSE)","v":false}]
[null,null,null,null,null,{"$f":"IF(E35=4,TRUE,FALSE)","v":false}]
[null,null,null,null,null,{"$f":"IF(E35=5,TRUE,FALSE)","v":false}]
[null,null,null,null,null,{"$f":"IF(E35=6,TRUE,FALSE)","v":false}]
[null,"Меры для достижения максимальной устойчивости","Ответственное учреждение","Сроки"]

{"sheet":"E03","index":5,"n_rows":15,"n_cols":9,"rows_kept":15,"cut":false,"hidden":false,"merged":[[4,1,4,3],[5,2,5,3],[6,2,6,3],[7,2,7,3],[8,2,13,3]]}
[]
[]
[null,"A.3 Согласование потребностей здравоохранения и программ финансирования (Основной принцип 3)",null,null,null,null,"A3",null,"Согласование потребностей здравоохранения и программ финансирования (Основной принцип 3)"]
[]
[null,"A3.1 Финансирование аспектов здравоохранения, влияющих на устойчивость ",null,null,null,null,"A3.1",null,"Финансирование аспектов здравоохранения, влияющих на устойчивость "]
[null,"Вопрос","Примечания"]
[]
[null,"Реагирование","Предоставить средства проверки (объяснения и доказательства)"]
[null,null,null,null,null,{"$f":"IF(E9=1,TRUE,FALSE)","v":false}]
[null,null,null,null,null,{"$f":"IF(E9=2,TRUE,FALSE)","v":false}]
[null,null,null,null,null,{"$f":"IF(E9=3,TRUE,FALSE)","v":false}]
[null,null,null,null,null,{"$f":"IF(E9=4,TRUE,FALSE)","v":false}]
[null,null,null,null,null,{"$f":"IF(E9=5,TRUE,FALSE)","v":false}]
[null,null,null,null,null,{"$f":"IF(E9=6,TRUE,FALSE)","v":false}]
[null,"Меры для достижения максимальной устойчивости","Ответственное учреждение","Сроки"]

{"sheet":"E04","index":6,"n_rows":15,"n_cols":9,"rows_kept":15,"cut":false,"hidden":false,"merged":[[4,1,4,3],[5,2,5,3],[6,2,6,3],[7,2,7,3],[8,2,13,3]]}
[]
[]
[null,"A.4 Интеграция потребностей здравоохранения и норм землепользования / строительства (Основной принцип 4)",null,null,null,null,"A4",null,"Интеграция потребностей здравоохранения и норм землепользования / строительства (Основной принцип 4)"]
[]
[null,"A4.1 Соответствие ключевых медицинских учреждений нормам и правилам устойчивого землепользования и строительства ",null,null,null,null,"A4.1",null,"Соответствие ключевых медицинских учреждений нормам и правилам устойчивого землепользования и строительства "]
[null,"Вопрос","Примечания"]
[]
[null,"Реагирование","Предоставить средства проверки (объяснения и доказательства)"]
[null,null,null,null,null,{"$f":"IF(E9=1,TRUE,FALSE)","v":false}]
[null,null,null,null,null,{"$f":"IF(E9=2,TRUE,FALSE)","v":false}]
[null,null,null,null,null,{"$f":"IF(E9=3,TRUE,FALSE)","v":false}]
[null,null,null,null,null,{"$f":"IF(E9=4,TRUE,FALSE)","v":false}]
[null,null,null,null,null,{"$f":"IF(E9=5,TRUE,FALSE)","v":false}]
[null,null,null,null,null,{"$f":"IF(E9=6,TRUE,FALSE)","v":false}]
[null,"Меры для достижения максимальной устойчивости","Ответственное учреждение","Сроки"]

{"sheet":"E05","index":7,"n_rows":15,"n_cols":9,"rows_kept":15,"cut":false,"hidden":false,"merged":[[4,1,4,3],[5,2,5,3],[6,2,6,3],[7,2,7,3],[8,2,13,3]]}
[]
[]
[null,"A.5 Управление экосистемными услугами, которые влияют на здоровье населения (Основной принцип 5)",null,null,null,null,"A5",null,"Управление экосистемными услугами, которые влияют на здоровье населения (Основной принцип 5)"]
[]
[null,"A5.1 Сохранение полезных для здоровья населения экосистемных услуг ",null,null,null,null,"A5.1",null,"Сохранение полезных для здоровья населения экосистемных услуг "]
[null,"Вопрос","Примечания"]
[]
[null,"Реагирование","Предоставить средства проверки (объяснения и доказательства)"]
[null,null,null,null,null,{"$f":"IF(E9=1,TRUE,FALSE)","v":false}]
[null,null,null,null,null,{"$f":"IF(E9=2,TRUE,FALSE)","v":false}]
[null,null,null,null,null,{"$f":"IF(E9=3,TRUE,FALSE)","v":false}]
[null,null,null,null,null,{"$f":"IF(E9=4,TRUE,FALSE)","v":false}]
[null,null,null,null,null,{"$f":"IF(E9=5,TRUE,FALSE)","v":false}]
[null,null,null,null,null,{"$f":"IF(E9=6,TRUE,FALSE)","v":false}]
[null,"Меры для достижения максимальной устойчивости","Ответственное учреждение","Сроки"]

{"sheet":"E06","index":8,"n_rows":54,"n_cols":9,"rows_kept":54,"cut":false,"hidden":false,"merged":[[4,1,4,3],[5,2,5,3],[6,2,6,3],[7,2,7,3],[17,1,17,3],[8,2,13,3],[18,2,18,3],[47,2,52,3],[34,2,39,3],[21,2,26,3],[19,2,19,3],[20,2,20,3],[30,1,30,3],[31,2,31,3],[32,2,32,3],[33,2,33,3],[43,1,43,3],[44,2,44,3],[45,2,45,3],[46,2,46,3]]}
[]
[]
[null,"A.6 Согласование планов развития здравоохранения и организационного потенциала (Основной принцип 6)",null,null,null,null,"A6",null,"Согласование планов развития здравоохранения и организационного потенциала (Основной принцип 6)"]
[]
[null,"A6.1 Наличие медицинских работников, имеющих соответствующие компетенции и навыки для обеспечения устойчивости к бедствиям",null,null,null,null,"A6.1",null,"Наличие медицинских работников, имеющих соответствующие компетенции и навыки для обеспечения устойчивости к бедствиям"]
[null,"Вопрос","Примечания"]
[]
[null,"Реагирование","Предоставить средства проверки (объяснения и доказательства)"]
[null,null,null,null,null,{"$f":"IF(E9=1,TRUE,FALSE)","v":false}]
[null,null,null,null,null,{"$f":"IF(E9=2,TRUE,FALSE)","v":false}]
[null,null,null,null,null,{"$f":"IF(E9=3,TRUE,FALSE)","v":false}]
[null,null,null,null,null,{"$f":"IF(E9=4,TRUE,FALSE)","v":false}]
[null,null,null,null,null,{"$f":"IF(E9=5,TRUE,FALSE)","v":false}]
[null,null,null,null,null,{"$f":"IF(E9=6,TRUE,FALSE)","v":false}]
[null,"Меры для достижения максимальной устойчивости","Ответственное учреждение","Сроки"]
[]
[]
[null,"A6.2 Предоставление данных системы здравоохранения другим заинтересованным сторонам ",null,null,null,null,"A6.2",null,"Предоставление данных системы здравоохранения другим заинтересованным сторонам "]
[null,"Вопрос","Примечания"]
[]
[null,"Реагирование","Предоставить средства проверки (объяснения и доказательства)"]
[null,null,null,null,null,{"$f":"IF(E22=1,TRUE,FALSE)","v":false}]
[null,null,null,null,null,{"$f":"IF(E22=2,TRUE,FALSE)","v":false}]
[null,null,null,null,null,{"$f":"IF(E22=3,TRUE,FALSE)","v":false}]
[null,null,null,null,null,{"$f":"IF(E22=4,TRUE,FALSE)","v":false}]
[null,null,null,null,null,{"$f":"IF(E22=5,TRUE,FALSE)","v":false}]
[null,null,null,null,null,{"$f":"IF(E22=6,TRUE,FALSE)","v":false}]
[null,"Меры для достижения максимальной устойчивости","Ответственное учреждение","Сроки"]
[]
[]
[null,"A6.2.1 Предоставление других данных заинтересованным сторонам в системе здравоохранения ",null,null,null,null,"A6.2.1",null,"Предоставление других данных заинтересованным сторонам в системе здравоохранения "]
[null,"Вопрос","Примечания"]
[]
[null,"Реагирование","Предоставить средства проверки (объяснения и доказательства)"]
[null,null,null,null,null,{"$f":"IF(E35=1,TRUE,FALSE)","v":false}]
[null,null,null,null,null,{"$f":"IF(E35=2,TRUE,FALSE)","v":false}]
[null,null,null,null,null,{"$f":"IF(E35=3,TRUE,FALSE)","v":false}]
[null,null,null,null,null,{"$f":"IF(E35=4,TRUE,FALSE)","v":false}]
[null,null,null,null,null,{"$f":"IF(E35=5,TRUE,FALSE)","v":false}]
[null,null,null,null,null,{"$f":"IF(E35=6,TRUE,FALSE)","v":false}]
[null,"Меры для достижения максимальной устойчивости","Ответственное учреждение","Сроки"]
[]
[]
[null,"A6.2.2 Защита индивидуальной медицинской документации и доступ к ней ",null,null,null,null,"A6.2.2",null,"Защита индивидуальной медицинской документации и доступ к ней "]
[null,"Вопрос","Примечания"]
[]
[null,"Реагирование","Предоставить средства проверки (объяснения и доказательства)"]
[null,null,null,null,null,{"$f":"IF(E48=1,TRUE,FALSE)","v":false}]
[null,null,null,null,null,{"$f":"IF(E48=2,TRUE,FALSE)","v":false}]
[null,null,null,null,null,{"$f":"IF(E48=3,TRUE,FALSE)","v":false}]
[null,null,null,null,null,{"$f":"IF(E48=4,TRUE,FALSE)","v":false}]
[null,null,null,null,null,{"$f":"IF(E48=5,TRUE,FALSE)","v":false}]
[null,null,null,null,null,{"$f":"IF(E48=6,TRUE,FALSE)","v":false}]
[null,"Меры для достижения максимальной устойчивости","Ответственное учреждение","Сроки"]

{"sheet":"E07","index":9,"n_rows":43,"n_cols":9,"rows_kept":43,"cut":false,"hidden":false,"merged":[[4,1,4,3],[5,2,5,3],[6,2,6,3],[7,2,7,3],[17,1,17,3],[18,2,18,3],[8,2,13,3],[21,2,26,3],[34,2,39,3],[19,2,19,3],[20,2,20,3],[30,1,30,3],[31,2,31,3],[32,2,32,3],[33,2,33,3]]}
[]
[]
[null,"A.7 Согласование планов развития здравоохранения и потенциала общества (Основной принцип 7)",null,null,null,null,"A7",null,"Согласование планов развития здравоохранения и потенциала общества (Основной принцип 7)"]
[null,null,null,null,null,null,""]
[null,"A7.1 Способность системы здравоохранения эффективно вовлекать представителей сообщества в мероприятия по управлению риском бедствий ",null,null,null,null,"A7.1",null,"Способность системы здравоохранения эффективно вовлекать представителей сообщества в мероприятия по управлению риском бедствий "]
[null,"Вопрос","Примечания",null,null,null,""]
[null,null,null,null,null,null,""]
[null,"Реагирование","Предоставить средства проверки (объяснения и доказательства)",null,null,null,""]
[null,null,null,null,null,{"$f":"IF(E9=1,TRUE,FALSE)","v":false},""]
[null,null,null,null,null,{"$f":"IF(E9=2,TRUE,FALSE)","v":false},""]
[null,null,null,null,null,{"$f":"IF(E9=3,TRUE,FALSE)","v":false},""]
[null,null,null,null,null,{"$f":"IF(E9=4,TRUE,FALSE)","v":false},""]
[null,null,null,null,null,{"$f":"IF(E9=5,TRUE,FALSE)","v":false},""]
[null,null,null,null,null,{"$f":"IF(E9=6,TRUE,FALSE)","v":false},""]
[null,"Меры для достижения максимальной устойчивости","Ответственное учреждение","Сроки",null,null,""]
[null,null,null,null,null,null,""]
[null,null,null,null,null,null,""]
[null,"A7.1.2 Доступ сообщества к информации, касающейся здоровья населения, и доверие к ней ",null,null,null,null,"A7.1.2",null,"Доступ сообщества к информации, касающейся здоровья населения, и доверие к ней "]
[null,"Вопрос","Примечания",null,null,null,""]
[null,null,null,null,null,null,""]
[null,"Реагирование","Предоставить средства проверки (объяснения и доказательства)",null,null,null,""]
[null,null,null,null,null,{"$f":"IF(E22=1,TRUE,FALSE)","v":false},""]
[null,null,null,null,null,{"$f":"IF(E22=2,TRUE,FALSE)","v":false},""]
[null,null,null,null,null,{"$f":"IF(E22=3,TRUE,FALSE)","v":false},""]
[null,null,null,null,null,{"$f":"IF(E22=4,TRUE,FALSE)","v":false},""]
[null,null,null,null,null,{"$f":"IF(E22=5,TRUE,FALSE)","v":false},""]
[null,null,null,null,null,{"$f":"IF(E22=6,TRUE,FALSE)","v":false},""]
[null,"Меры для достижения максимальной устойчивости","Ответственное учреждение","Сроки",null,null,""]
[null,null,null,null,null,null,""]
[null,null,null,null,null,null,""]
[null,"A7.2 Способность сообщества \"вернуться к нормальной жизни\" – психическое здоровье ",null,null,null,null,"A7.2",null,"Способность сообщества \"вернуться к нормальной жизни\" – психическое здоровье "]
[null,"Вопрос","Примечания",null,null,null,""]
[null,null,null,null,null,null,""]
[null,"Реагирование","Предоставить средства проверки (объяснения и доказательства)",null,null,null,""]
[null,null,null,null,null,{"$f":"IF(E35=1,TRUE,FALSE)","v":false},""]
[null,null,null,null,null,{"$f":"IF(E35=2,TRUE,FALSE)","v":false},""]
[null,null,null,null,null,{"$f":"IF(E35=3,TRUE,FALSE)","v":false},""]
[null,null,null,null,null,{"$f":"IF(E35=4,TRUE,FALSE)","v":false},""]
[null,null,null,null,null,{"$f":"IF(E35=5,TRUE,FALSE)","v":false},""]
[null,null,null,null,null,{"$f":"IF(E35=6,TRUE,FALSE)","v":false},""]
[null,"Меры для достижения максимальной устойчивости","Ответственное учреждение","Сроки",null,null,""]
[null,null,null,null,null,null,""]
[null,null,null,null,null,null,""]

{"sheet":"E08","index":10,"n_rows":43,"n_cols":9,"rows_kept":43,"cut":false,"hidden":false,"merged":[[34,2,39,3],[21,2,26,3],[8,2,13,3],[33,2,33,3],[4,1,4,3],[5,2,5,3],[6,2,6,3],[7,2,7,3],[17,1,17,3],[18,2,18,3],[19,2,19,3],[20,2,20,3],[30,1,30,3],[31,2,31,3],[32,2,32,3]]}
[]
[]
[null,"A.8 Согласование вопросов развития здравоохранения и устойчивости инфраструктуры (Основной принцип 8)",null,null,null,null,"A8",null,"Согласование вопросов развития здравоохранения и устойчивости инфраструктуры (Основной принцип 8)"]
[null,null,null,null,null,null,""]
[null,"A8.1 Повышение структурной и неструктурной безопасности и функциональности объектов инфраструктуры здравоохранения, не учитываемых в Основном принципе 8 ",null,null,null,null,"A8.1",null,"Повышение структурной и неструктурной безопасности и функциональности объектов инфраструктуры здравоохранения, не учитываемых в Основном принципе 8 "]
[null,"Вопрос","Примечания",null,null,null,""]
[null,null,null,null,null,null,""]
[null,"Реагирование","Предоставить средства проверки (объяснения и доказательства)",null,null,null,""]
[null,null,null,null,null,{"$f":"IF(E9=1,TRUE,FALSE)","v":false},""]
[null,null,null,null,null,{"$f":"IF(E9=2,TRUE,FALSE)","v":false},""]
[null,null,null,null,null,{"$f":"IF(E9=3,TRUE,FALSE)","v":false},""]
[null,null,null,null,null,{"$f":"IF(E9=4,TRUE,FALSE)","v":false},""]
[null,null,null,null,null,{"$f":"IF(E9=5,TRUE,FALSE)","v":false},""]
[null,null,null,null,null,{"$f":"IF(E9=6,TRUE,FALSE)","v":false},""]
[null,"Меры для достижения максимальной устойчивости","Ответственное учреждение","Сроки",null,null,""]
[null,null,null,null,null,null,""]
[null,null,null,null,null,null,""]
[null,"A8.2 Потенциал экстренной мобилизации инфраструктуры здравоохранения, не учтенный в рамках Основного принципа 8 ",null,null,null,null,"A8.2",null,"Потенциал экстренной мобилизации инфраструктуры здравоохранения, не учтенный в рамках Основного принципа 8 "]
[null,"Вопрос","Примечания",null,null,null,""]
[null,null,null,null,null,null,""]
[null,"Реагирование","Предоставить средства проверки (объяснения и доказательства)",null,null,null,""]
[null,null,null,null,null,{"$f":"IF(E22=1,TRUE,FALSE)","v":false},""]
[null,null,null,null,null,{"$f":"IF(E22=2,TRUE,FALSE)","v":false},""]
[null,null,null,null,null,{"$f":"IF(E22=3,TRUE,FALSE)","v":false},""]
[null,null,null,null,null,{"$f":"IF(E22=4,TRUE,FALSE)","v":false},""]
[null,null,null,null,null,{"$f":"IF(E22=5,TRUE,FALSE)","v":false},""]
[null,null,null,null,null,{"$f":"IF(E22=6,TRUE,FALSE)","v":false},""]
[null,"Меры для достижения максимальной устойчивости","Ответственное учреждение","Сроки",null,null,""]
[null,null,null,null,null,null,""]
[null,null,null,null,null,null,""]
[null,"A8.3 Непрерывность ухода за теми, кто уже болен, если это не учитывается в Основном принципе 8. ",null,null,null,null,"A8.3",null,"Непрерывность ухода за теми, кто уже болен, если это не учитывается в Основном принципе 8. "]
[null,"Вопрос","Примечания",null,null,null,""]
[null,null,null,null,null,null,""]
[null,"Реагирование","Предоставить средства проверки (объяснения и доказательства)",null,null,null,""]
[null,null,null,null,null,{"$f":"IF(E35=1,TRUE,FALSE)","v":false},""]
[null,null,null,null,null,{"$f":"IF(E35=2,TRUE,FALSE)","v":false},""]
[null,null,null,null,null,{"$f":"IF(E35=3,TRUE,FALSE)","v":false},""]
[null,null,null,null,null,{"$f":"IF(E35=4,TRUE,FALSE)","v":false},""]
[null,null,null,null,null,{"$f":"IF(E35=5,TRUE,FALSE)","v":false},""]
[null,null,null,null,null,{"$f":"IF(E35=6,TRUE,FALSE)","v":false},""]
[null,"Меры для достижения максимальной устойчивости","Ответственное учреждение","Сроки",null,null,""]
[null,null,null,null,null,null,""]
[null,null,null,null,null,null,""]

{"sheet":"E09","index":11,"n_rows":56,"n_cols":9,"rows_kept":56,"cut":false,"hidden":false,"merged":[[47,2,52,3],[34,2,39,3],[21,2,26,3],[30,1,30,3],[31,2,31,3],[32,2,32,3],[33,2,33,3],[43,1,43,3],[44,2,44,3],[45,2,45,3],[46,2,46,3],[19,2,19,3],[20,2,20,3],[4,1,4,3],[5,2,5,3],[6,2,6,3],[7,2,7,3],[17,1,17,3],[18,2,18,3],[8,2,13,3]]}
[]
[]
[null,"A.9 Согласование планов по охране здоровья населения и реагирования на бедствия (Основной принцип 9)",null,null,null,null,"A9",null,"Согласование планов по охране здоровья населения и реагирования на бедствия (Основной принцип 9)"]
[null,null,null,null,null,null,""]
[null,"A9.1 Системы раннего оповещения о чрезвычайных ситуациях, связанных со здоровьем населения ",null,null,null,null,"A9.1",null,"Системы раннего оповещения о чрезвычайных ситуациях, связанных со здоровьем населения "]
[null,"Вопрос","Примечания",null,null,null,""]
[null,null,null,null,null,null,""]
[null,"Реагирование","Предоставить средства проверки (объяснения и доказательства)",null,null,null,""]
[null,null,null,null,null,{"$f":"IF(E9=1,TRUE,FALSE)","v":false},""]
[null,null,null,null,null,{"$f":"IF(E9=2,TRUE,FALSE)","v":false},""]
[null,null,null,null,null,{"$f":"IF(E9=3,TRUE,FALSE)","v":false},""]
[null,null,null,null,null,{"$f":"IF(E9=4,TRUE,FALSE)","v":false},""]
[null,null,null,null,null,{"$f":"IF(E9=5,TRUE,FALSE)","v":false},""]
[null,null,null,null,null,{"$f":"IF(E9=6,TRUE,FALSE)","v":false},""]
[null,"Меры для достижения максимальной устойчивости","Ответственное учреждение","Сроки",null,null,""]
[null,null,null,null,null,null,""]
[null,null,null,null,null,null,""]
[null,"A9.2 Интеграция здравоохранения в систему управления при чрезвычайных ситуациях ",null,null,null,null,"A9.2",null,"Интеграция здравоохранения в систему управления при чрезвычайных ситуациях "]
[null,"Вопрос","Примечания",null,null,null,""]
[null,null,null,null,null,null,""]
[null,"Реагирование","Предоставить средства проверки (объяснения и доказательства)",null,null,null,""]
[null,null,null,null,null,{"$f":"IF(E22=1,TRUE,FALSE)","v":false},""]
[null,null,null,null,null,{"$f":"IF(E22=2,TRUE,FALSE)","v":false},""]
[null,null,null,null,null,{"$f":"IF(E22=3,TRUE,FALSE)","v":false},""]
[null,null,null,null,null,{"$f":"IF(E22=4,TRUE,FALSE)","v":false},""]
[null,null,null,null,null,{"$f":"IF(E22=5,TRUE,FALSE)","v":false},""]
[null,null,null,null,null,{"$f":"IF(E22=6,TRUE,FALSE)","v":false},""]
[null,"Меры для достижения максимальной устойчивости","Ответственное учреждение","Сроки",null,null,""]
[null,null,null,null,null,null,""]
[null,null,null,null,null,null,""]
[null,"A9.3 Учет групп повышенного риска или лиц, находящихся дома и имеющих хронические заболевания ",null,null,null,null,"A9.3",null,"Учет групп повышенного риска или лиц, находящихся дома и имеющих хронические заболевания "]
[null,"Вопрос","Примечания",null,null,null,""]
[null,null,null,null,null,null,""]
[null,"Реагирование","Предоставить средства проверки (объяснения и доказательства)",null,null,null,""]
[null,null,null,null,null,{"$f":"IF(E35=1,TRUE,FALSE)","v":false},""]
[null,null,null,null,null,{"$f":"IF(E35=2,TRUE,FALSE)","v":false},""]
[null,null,null,null,null,{"$f":"IF(E35=3,TRUE,FALSE)","v":false},""]
[null,null,null,null,null,{"$f":"IF(E35=4,TRUE,FALSE)","v":false},""]
[null,null,null,null,null,{"$f":"IF(E35=5,TRUE,FALSE)","v":false},""]
[null,null,null,null,null,{"$f":"IF(E35=6,TRUE,FALSE)","v":false},""]
[null,"Меры для достижения максимальной устойчивости","Ответственное учреждение","Сроки",null,null,""]
[null,null,null,null,null,null,""]
[null,null,null,null,null,null,""]
[null,"A9.4 Способность снабжения нуждающихся товарами, необходимыми для поддержания здоровья населения. ",null,null,null,null,"A9.4",null,"Способность снабжения нуждающихся товарами, необходимыми для поддержания здоровья населения. "]
[null,"Вопрос","Примечания",null,null,null,""]
[null,null,null,null,null,null,""]
[null,"Реагирование","Предоставить средства проверки (объяснения и доказательства)",null,null,null,""]
[null,null,null,null,null,{"$f":"IF(E48=1,TRUE,FALSE)","v":false},""]
[null,null,null,null,null,{"$f":"IF(E48=2,TRUE,FALSE)","v":false},""]
[null,null,null,null,null,{"$f":"IF(E48=3,TRUE,FALSE)","v":false},""]
[null,null,null,null,null,{"$f":"IF(E48=4,TRUE,FALSE)","v":false},""]
[null,null,null,null,null,{"$f":"IF(E48=5,TRUE,FALSE)","v":false},""]
[null,null,null,null,null,{"$f":"IF(E48=6,TRUE,FALSE)","v":false},""]
[null,"Меры для достижения максимальной устойчивости","Ответственное учреждение","Сроки",null,null,""]
[null,null,null,null,null,null,""]
[null,null,null,null,null,null,""]

{"sheet":"E10","index":12,"n_rows":28,"n_cols":9,"rows_kept":28,"cut":false,"hidden":false,"merged":[[4,1,4,3],[5,2,5,3],[6,2,6,3],[7,2,7,3],[17,1,17,3],[21,2,26,3],[8,2,13,3],[19,2,19,3],[20,2,20,3],[18,2,18,3]]}
[]
[]
[null,"A.10 Согласование планов действий в области здравоохранения и планов восстановления с учетом более высоких стандартов (Основной принцип 10)",null,null,null,null,"A10",null,"Согласование планов действий в области здравоохранения и планов восстановления с учетом более высоких стандартов (Основной принцип 10)"]
[]
[null,"A10.1 Смягчение долгосрочных последствий для здоровья и благосостояния населения",null,null,null,null,"A10.1",null,"Смягчение долгосрочных последствий для здоровья и благосостояния населения"]
[null,"Вопрос","Примечания"]
[]
[null,"Реагирование","Предоставить средства проверки (объяснения и доказательства)"]
[null,null,null,null,null,{"$f":"IF(E9=1,TRUE,FALSE)","v":false}]
[null,null,null,null,null,{"$f":"IF(E9=2,TRUE,FALSE)","v":false}]
[null,null,null,null,null,{"$f":"IF(E9=3,TRUE,FALSE)","v":false}]
[null,null,null,null,null,{"$f":"IF(E9=4,TRUE,FALSE)","v":false}]
[null,null,null,null,null,{"$f":"IF(E9=5,TRUE,FALSE)","v":false}]
[null,null,null,null,null,{"$f":"IF(E9=6,TRUE,FALSE)","v":false}]
[null,"Меры для достижения максимальной устойчивости","Ответственное учреждение","Сроки"]
[]
[]
[null,"A10.2 Обучение и совершенствование навыков ",null,null,null,null,"A10.2",null,"Обучение и совершенствование навыков "]
[null,"Вопрос","Примечания"]
[]
[null,"Реагирование","Предоставить средства проверки (объяснения и доказательства)"]
[null,null,null,null,null,{"$f":"IF(E22=1,TRUE,FALSE)","v":false}]
[null,null,null,null,null,{"$f":"IF(E22=2,TRUE,FALSE)","v":false}]
[null,null,null,null,null,{"$f":"IF(E22=3,TRUE,FALSE)","v":false}]
[null,null,null,null,null,{"$f":"IF(E22=4,TRUE,FALSE)","v":false}]
[null,null,null,null,null,{"$f":"IF(E22=5,TRUE,FALSE)","v":false}]
[null,null,null,null,null,{"$f":"IF(E22=6,TRUE,FALSE)","v":false}]
[null,"Меры для достижения максимальной устойчивости","Ответственное учреждение","Сроки"]

{"sheet":"About","index":13,"n_rows":0,"n_cols":0,"rows_kept":0,"cut":false,"hidden":false,"merged":[]}